bitfinex/quotes_SOLUSD_20250118
["timestamp","ask_amount","ask_price","bid_price","bid_amount"]
[1737185407859,10.54720724,232.4,232.38,20.0]
[1737185408058,0.063,232.69,232.59,20.0]
[1737185408272,66.50876235,232.73,232.6,218.20688198]
[1737185408449,35.52397552,232.8,232.6,232.19599961]
[1737185408651,10.54720724,232.76,232.6,181.53859276]
[1737185408888,10.54720724,232.74,232.6,181.53859276]
[1737185409052,10.54720724,232.74,232.63,20.0]
[1737185409255,10.54720724,232.74,232.63,20.64449341]
[1737185409553,10.50700082,232.75,232.63,150.58308617]
[1737185409751,16.81246404,232.74,232.63,149.93859276]
[1737185409952,16.81246404,232.72,232.63,149.93859276]
[1737185410542,16.81246404,232.72,232.63,151.92694947]
[1737185410873,11.9488,232.81,232.63,149.93859276]
[1737185411054,16.81246404,232.7,232.63,149.93859276]
[1737185411257,16.81849561,232.7,232.63,149.93859276]
[1737185411557,16.81849561,232.68,232.63,149.93859276]
[1737185411748,16.81849561,232.64,232.51,129.93859276]
[1737185411944,16.81849561,232.61,232.52,130.58335206]
[1737185412171,16.81849561,232.61,232.55,20.0]
[1737185412568,16.81849561,232.59,232.55,20.0]
[1737185412871,16.81849561,232.61,232.55,129.93859276]
[1737185413267,16.81849561,232.61,232.58,20.0]
[1737185413575,16.81849561,232.61,232.58,149.93859276]
[1737185413967,16.81849561,232.61,232.48,149.93859276]
[1737185414172,16.81849561,232.61,232.49,0.64482381]
[1737185414371,16.81849561,232.57,232.49,129.93859276]
[1737185414780,3.1271,232.72,232.48,20.0]
[1737185414969,16.81849561,232.63,232.48,150.58340925]
[1737185415169,3.1271,232.72,232.48,149.93859276]
[1737185415370,16.81849561,232.69,232.52,20.0]
[1737185415559,16.81849561,232.71,232.56,20.0]
[1737185415753,16.81849561,232.71,232.57,0.64456046]
[1737185416764,16.81849561,232.71,232.6,149.93859276]
[1737185416962,11.9488,232.81,232.61,0.64458153]
[1737185416963,16.81849561,232.73,232.61,0.64458153]
[1737185417163,16.81849561,232.75,232.64,20.0]
[1737185417763,16.81849561,232.73,232.64,149.93859276]
[1737185417960,16.81849561,232.79,232.64,149.93859276]
[1737185418166,16.81849561,232.79,232.65,0.64440239]
[1737185418583,16.81849561,232.79,232.68,149.93859276]
[1737185420572,16.81849561,232.77,232.68,151.9132082]
[1737185422665,4.2948,232.84,232.68,151.9132082]
[1737185422981,16.81849561,232.69,232.63,0.03]
[1737185423174,15.0317,232.84,232.63,129.96859276]
[1737185423175,16.81849561,232.73,232.63,129.96859276]
[1737185423380,16.81849561,232.73,232.66,20.0]
[1737185424186,15.0759,232.89,232.66,149.93859276]
[1737185424187,16.81849561,232.77,232.66,149.93859276]
[1737185424391,4.2947,232.85,232.66,149.93859276]
[1737185424572,16.81849561,232.77,232.66,149.93859276]
[1737185425089,16.81849561,232.79,232.7,20.0]
[1737185428786,16.81849561,232.79,232.7,149.93859276]
[1737185429181,16.81849561,232.73,232.67,1.97094677]
[1737185429382,16.81849561,232.73,232.66,20.0]
[1737185429596,4.294,232.88,232.66,130.582994]
[1737185429597,16.81849561,232.77,232.66,130.582994]
[1737185429777,16.81849561,232.77,232.66,129.93859276]
[1737185430384,16.81849561,232.79,232.69,149.93859276]
[1737185430570,16.81849561,232.79,232.73,20.0]
[1737185432077,16.81849561,232.85,232.73,150.58284032]
[1737185432284,16.81849561,232.87,232.73,149.93859276]
[1737185432494,16.81849561,232.85,232.74,0.64415108]
[1737185432876,0.063,232.93,232.77,20.0]
[1737185433096,16.81849561,232.84,232.81,20.0]
[1737185433483,16.81849561,232.82,232.68,144.09218352]
[1737185433682,20.0,232.87,232.68,144.09218352]
[1737185433897,16.81849561,232.9,232.68,144.09218352]
[1737185433898,16.81849561,232.81,232.68,144.09218352]
[1737185434295,16.81849561,232.79,232.71,20.0]
[1737185436899,10.7958,232.93,232.71,20.0]
[1737185436900,0.063,232.93,232.72,0.64432358]
[1737185437088,0.063,232.93,232.75,20.0]
[1737185437289,0.063,232.93,232.83,149.93859276]
[1737185437602,0.063,232.93,232.84,0.6439319]
[1737185438304,16.81849561,232.92,232.84,0.6439319]
[1737185439184,0.063,232.93,232.84,0.6439319]
[1737185440404,16.81849561,232.92,232.84,0.6439319]
[1737185440578,16.81849561,232.88,232.83,20.0]
[1737185442498,0.063,232.93,232.84,20.0]
[1737185442700,16.88149561,232.93,232.87,20.0]
[1737185444009,0.063,232.93,232.87,20.0]
[1737185444481,0.063,232.93,232.88,20.0]
[1737185444802,0.063,232.93,232.88,149.93859276]
[1737185445015,16.81849561,232.92,232.88,149.93859276]
[1737185445200,16.81849561,232.92,232.88,129.93859276]
[1737185445519,33.63699122,232.9,232.74,129.96859276]
[1737185445686,16.81849561,232.81,232.74,0.03]
[1737185446014,16.81849561,232.81,232.74,129.96859276]
[1737185446216,16.81849561,232.87,232.78,20.0]
[1737185446436,16.81849561,232.89,232.78,150.58266694]
[1737185446590,16.81849561,232.89,232.78,149.93859276]
[1737185446999,16.81849561,232.87,232.78,149.93859276]
[1737185447192,0.063,232.93,232.78,149.93859276]
[1737185447393,16.81849561,232.91,232.78,149.93859276]
[1737185447814,16.81849561,232.91,232.79,0.64406089]
[1737185448018,16.81849561,232.89,232.79,0.64406089]
[1737185448513,16.81849561,232.87,232.78,152.03859276]
[1737185449224,16.81849561,232.87,232.8,20.0]
[1737185449611,16.81849561,232.89,232.8,149.93859276]
[1737185450431,16.81849561,232.87,232.8,149.93859276]
[1737185450631,16.81849561,232.83,232.78,2.1]
[1737185450917,16.81849561,232.85,232.78,132.03859276]
[1737185452117,16.81849561,232.87,232.81,20.0]
[1737185452304,16.81849561,232.87,232.81,149.93859276]
[1737185452812,16.81849561,232.89,232.81,149.93859276]
[1737185453018,0.063,232.93,232.85,20.0]
[1737185453314,0.063,232.93,232.85,150.58251105]
[1737185453510,0.063,232.93,232.85,149.93859276]
[1737185454510,16.81849561,232.92,232.85,149.93859276]
[1737185455107,16.81849561,232.92,232.86,0.64402107]
[1737185455501,16.88149561,232.93,232.86,0.64402107]
[1737185456197,0.063,232.91,232.86,0.64402107]
[1737185456816,0.063,232.91,232.89,20.0]
[1737185457800,16.88149561,232.91,232.86,129.93859276]
[1737185458322,16.81849561,232.89,232.82,129.93859276]
[1737185459221,0.063,233.0,232.89,149.93859276]
[1737185459515,0.063,233.1,232.93,149.93859276]
[1737185459721,16.88149561,233.1,232.97,149.93859276]
[1737185460019,16.88149561,233.1,232.98,130.58212501]
[1737185460195,0.063,233.1,233.01,20.0]
[1737185460400,16.88149561,233.1,233.01,20.0]
[1737185460725,0.063,233.1,233.05,20.0]
[1737185461420,16.81849561,233.06,233.01,20.0]
[1737185461719,16.88149561,233.1,233.01,149.93859276]
[1737185462716,16.81849561,233.04,233.01,149.93859276]
[1737185463118,16.81849561,233.02,232.94,142.16849276]
[1737185463429,16.81849561,232.96,232.83,12.2299]
[1737185463606,16.81849561,232.96,232.83,12.87380204]
[1737185463802,16.81849561,232.98,232.83,142.8123948]
[1737185464113,16.81849561,233.02,232.86,20.0]
[1737185464311,16.81849561,233.06,232.9,149.93859276]
[1737185464620,16.81849561,233.06,232.91,0.64366596]
[1737185464817,16.81849561,233.04,232.91,0.64366596]
[1737185465722,16.81849561,233.04,232.94,20.0]
[1737185465931,16.81849561,233.04,232.95,0.64371489]
[1737185466808,16.88149561,233.08,232.98,149.93859276]
[1737185467720,16.88149561,233.08,233.01,129.96859276]
[1737185467923,0.063,233.08,233.01,129.96859276]
[1737185468227,0.063,233.04,233.03,20.0]
[1737185468529,0.063,233.08,233.03,149.93859276]
[1737185469912,0.063,233.08,233.04,0.64336465]
[1737185470111,0.063,233.1,233.07,149.93859276]
[1737185470306,0.063,233.12,233.11,149.93859276]
[1737185470534,0.063,233.12,233.11,20.0]
[1737185471034,0.063,233.12,233.05,20.0]
[1737185471329,0.063,233.12,233.1,157.3]
[1737185471514,0.063,233.12,233.11,150.45470533]
[1737185471823,0.063,233.12,233.11,149.8116]
[1737185472216,16.81849561,233.32,233.14,20.0]
[1737185472426,16.81849561,233.32,233.17,157.3]
[1737185472921,16.88149561,233.36,233.18,137.94288907]
[1737185473229,0.063,233.36,233.22,20.0]
[1737185473418,0.063,233.36,233.26,20.0]
[1737185473831,0.063,233.36,233.26,20.64267202]
[1737185474206,0.063,233.36,233.26,170.45427202]
[1737185474430,0.063,233.36,233.26,175.62887379]
[1737185474639,0.063,233.36,233.26,38.32887379]
[1737185474808,0.063,233.36,233.27,0.64274601]
[1737185475004,0.063,233.36,233.27,137.94274601]
[1737185475234,16.81849561,233.48,233.3,157.3]
[1737185475526,16.81849561,233.48,233.31,0.64246277]
[1737185475705,16.81849561,233.48,233.34,20.0]
[1737185475909,16.81849561,233.52,233.38,20.0]
[1737185476123,16.81849561,233.52,233.38,20.64236306]
[1737185476321,16.81849561,233.52,233.38,20.0]
[1737185476517,16.81849561,233.44,233.26,149.8116]
[1737185476730,16.81849561,233.42,233.27,137.94262026]
[1737185477033,16.81849561,233.42,233.3,20.0]
[1737185477215,16.81849561,233.44,233.3,20.64262853]
[1737185477412,16.81849561,233.4,233.27,5.81727379]
[1737185477623,16.81849561,233.4,233.26,1.87250792]
[1737185477816,16.81849561,233.44,233.26,0.64276807]
[1737185478023,16.81849561,233.48,233.29,157.3]
[1737185478230,16.81849561,233.5,233.33,20.0]
[1737185478427,16.81849561,233.5,233.37,20.0]
[1737185479028,0.063,233.53,233.37,20.0]
[1737185479224,0.063,233.53,233.37,20.64242116]
[1737185479424,16.81849561,233.52,233.37,20.64242116]
[1737185480218,16.81849561,233.5,233.37,20.64242116]
[1737185480536,16.81849561,233.42,233.3,1.83572653]
[1737185480731,16.81849561,233.38,233.2,0.64276775]
[1737185480935,16.81849561,233.38,233.2,2.51337478]
[1737185481233,16.96863953,233.53,233.13,183.54]
[1737185481234,16.81849561,233.3,233.13,183.54]
[1737185481420,16.81849561,233.26,233.13,46.24]
[1737185481622,16.81849561,233.26,233.13,48.12035856]
[1737185482533,16.81849561,233.22,233.13,46.24]
[1737185482716,16.81849561,233.22,233.2,2.1]
[1737185483538,16.74607379,233.21,233.2,2.1]
[1737185483834,27.21227125,233.21,233.2,2.1]
[1737185485542,4.2881,233.2,232.97,2.7575]
[1737185485840,27.21227125,233.11,232.96,5.12]
[1737185486042,27.21227125,233.09,232.96,5.12]
[1737185486422,27.21227125,233.05,232.94,2.21996808]
[1737185486621,27.21227125,233.03,232.91,1.87357282]
[1737185486930,27.21227125,233.03,232.88,3.40114477]
[1737185487130,27.21227125,233.05,232.88,3.40114477]
[1737185487641,27.21227125,233.05,232.88,25.32281091]
[1737185488025,27.21227125,233.03,232.88,5.32281091]
[1737185489239,27.21227125,233.03,232.89,20.0]
[1737185489632,27.21227125,233.01,232.89,20.0]
[1737185489832,27.21227125,233.01,232.88,21.98466614]
[1737185490137,27.21227125,232.95,232.88,0.063]
[1737185491723,27.21227125,232.91,232.88,0.063]
[1737185492238,27.21227125,232.89,232.88,0.063]
[1737185493324,27.21227125,232.92,232.88,0.063]
[1737185493745,27.21227125,232.9,232.88,0.063]
[1737185494231,27.21227125,232.92,232.88,0.063]
[1737185495854,4.3211,233.04,232.88,0.063]
[1737185496047,27.21227125,232.99,232.88,0.063]
[1737185496843,27.21227125,232.99,232.88,1.90861737]
[1737185497046,27.21227125,232.99,232.88,0.063]
[1737185498120,27.21227125,232.97,232.88,0.063]
[1737185498544,27.21227125,232.95,232.88,0.063]
[1737185498743,0.03,233.04,232.88,20.063]
[1737185498969,27.21227125,232.97,232.88,20.063]
[1737185499238,27.21227125,232.95,232.88,20.063]
[1737185499642,4.2915,233.02,232.88,20.063]
[1737185499643,27.21227125,232.93,232.88,0.063]
[1737185499828,27.21227125,232.91,232.88,0.063]
[1737185500427,27.21227125,232.89,232.88,0.063]
[1737185501343,31.50607125,232.89,232.88,0.063]
[1737185501938,31.50607125,232.89,232.78,0.03]
[1737185502137,27.21227125,232.81,232.78,0.03]
[1737185504247,27.21227125,232.83,232.78,0.03]
[1737185504459,27.21227125,232.81,232.78,0.03]
[1737185504831,27.21227125,232.83,232.78,0.03]
[1737185507256,27.21227125,232.81,232.78,0.03]
[1737185507427,27.30287159,232.82,232.78,0.03]
[1737185508150,16.79930716,232.84,232.78,0.03]
[1737185508331,16.79930716,232.86,232.78,0.03]
[1737185508745,16.79930716,232.84,232.78,0.03]
[1737185509934,16.79930716,232.81,232.78,0.03]
[1737185511037,16.79930716,232.9,232.78,0.03]
[1737185511038,16.79930716,232.79,232.78,0.03]
[1737185511551,16.79930716,232.79,232.74,0.03]
[1737185511744,33.59861432,232.75,232.64,0.063]
[1737185511945,16.79930716,232.65,232.64,0.063]
[1737185512349,16.79930716,232.69,232.64,0.063]
[1737185515638,11.2733,232.83,232.64,0.063]
[1737185515639,16.79930716,232.73,232.64,0.063]
[1737185515934,16.79930716,232.79,232.66,20.0]
[1737185516153,16.79930716,232.76,232.66,20.0]
[1737185516345,16.79930716,232.8,232.66,20.0]
[1737185517165,16.79930716,232.78,232.66,20.0]
[1737185517658,16.79930716,232.76,232.66,20.0]
[1737185518437,16.79930716,232.74,232.66,20.0]
[1737185518972,2.7026,232.85,232.66,20.0]
[1737185518973,10.3235,232.99,232.74,20.0]
[1737185519156,16.79930716,232.96,232.75,9.77397384]
[1737185519372,10.3235,232.99,232.75,158.32741534]
[1737185519554,10.3235,232.99,232.75,157.68344282]
[1737185519961,16.79930716,232.98,232.75,157.68344282]
[1737185520355,27.12280716,232.99,232.75,157.68344282]
[1737185520749,27.12280716,232.99,232.76,0.64399083]
[1737185521053,27.12280716,232.99,232.77,6.33618152]
[1737185521260,27.12280716,232.99,232.78,0.64399024]
[1737185521469,16.77761948,232.95,232.78,6.98017176]
[1737185521758,10.3235,232.99,232.76,137.94391712]
[1737185521957,4.2924,232.97,232.76,137.3]
[1737185522167,4.2924,232.97,232.75,4.57630195]
[1737185523047,4.2924,232.97,232.78,20.0]
[1737185523450,27.27876159,232.9,232.78,20.0]
[1737185523648,27.27876159,232.88,232.78,20.0]
[1737185523849,27.27876159,232.9,232.78,20.0]
[1737185524274,27.27876159,232.9,232.79,20.0]
[1737185525871,27.27876159,232.88,232.79,20.0]
[1737185526181,27.27876159,232.95,232.79,137.94424655]
[1737185526359,27.27876159,233.0,232.86,20.0]
[1737185527575,27.30876159,233.0,232.86,20.0]
[1737185527756,27.27876159,232.98,232.86,20.0]
[1737185528168,27.27876159,232.96,232.86,20.0]
[1737185528558,27.27876159,232.94,232.86,20.0]
[1737185528759,27.27876159,232.92,232.83,11.2341]
[1737185529254,27.27876159,232.92,232.81,137.3]
[1737185529465,27.27876159,232.9,232.81,137.3]
[1737185529884,0.03,233.0,232.84,157.3]
[1737185530085,0.03,233.0,232.85,137.94380356]
[1737185530280,0.03,233.0,232.85,137.3]
[1737185530479,0.03,233.0,232.88,157.3]
[1737185530666,0.03,233.0,232.92,20.0]
[1737185532364,27.27876159,232.99,232.85,6.33618152]
[1737185532689,27.27876159,232.97,232.82,139.10651354]
[1737185533162,27.27876159,232.93,232.79,143.63618152]
[1737185533362,27.27876159,232.91,232.79,6.33618152]
[1737185533899,27.27876159,232.91,232.79,8.15306373]
[1737185534068,0.03,233.0,232.77,147.5298]
[1737185534069,27.27876159,232.89,232.77,147.5298]
[1737185534257,27.27876159,232.87,232.77,12.01448475]
[1737185534459,27.27876159,232.85,232.77,1.78468475]
[1737185534781,27.27876159,232.87,232.76,20.0]
[1737185535097,27.27876159,232.87,232.76,137.3]
[1737185535466,27.27876159,232.85,232.75,1.89163494]
[1737185535799,27.27876159,232.85,232.75,0.063]
[1737185535992,27.27876159,232.83,232.75,0.063]
[1737185536496,27.27876159,232.83,232.76,20.0]
[1737185537189,27.27876159,232.85,232.76,20.0]
[1737185537391,10.6359,232.91,232.76,20.0]
[1737185537392,27.27876159,232.87,232.76,20.0]
[1737185537566,27.27876159,232.89,232.78,20.0]
[1737185538375,27.27876159,232.87,232.78,20.0]
[1737185539083,27.27876159,232.89,232.78,20.0]
[1737185542489,27.27876159,232.89,232.78,21.81763538]
[1737185542803,15.0,232.96,232.78,159.76184729]
[1737185543004,27.27876159,232.94,232.78,159.11763538]
[1737185543304,27.27876159,232.92,232.78,159.11763538]
[1737185543487,27.28000948,232.9,232.78,159.11763538]
[1737185543676,16.79235039,232.89,232.78,139.11763538]
[1737185544608,16.79235039,232.87,232.81,20.0]
[1737185544911,15.0,232.96,232.81,20.0]
[1737185545201,31.79235039,232.96,232.82,20.0]
[1737185545911,15.0,232.96,232.86,20.0]
[1737185546209,15.0,232.96,232.9,157.3]
[1737185546373,0.50355044,232.96,232.94,20.0]
[1737185546775,0.50355044,232.96,232.88,1.82920523]
[1737185546995,16.79235039,232.94,232.83,148.3576]
[1737185547413,16.79235039,232.94,232.86,20.0]
[1737185548105,16.79235039,232.88,232.74,137.3]
[1737185548290,16.79235039,232.86,232.69,137.3]
[1737185548487,16.79235039,232.84,232.69,137.3]
[1737185548895,16.79235039,232.84,232.72,20.0]
[1737185549193,16.79235039,232.84,232.69,139.12340866]
[1737185549505,16.79235039,232.77,232.64,0.063]
[1737185551103,4.2962,232.76,232.64,0.063]
[1737185551597,16.82027386,232.76,232.64,0.063]
[1737185551799,27.31646926,232.76,232.67,20.0]
[1737185552107,27.31646926,232.78,232.67,20.64447667]
[1737185552484,27.31646926,232.8,232.67,20.64447667]
[1737185552689,0.03,232.89,232.67,157.94447667]
[1737185552901,27.31646926,232.83,232.68,0.64429099]
[1737185553201,27.31646926,232.83,232.71,20.0]
[1737185553405,27.31646926,232.81,232.71,159.12635153]
[1737185553702,27.31646926,232.81,232.71,157.3]
[1737185554418,27.31646926,232.79,232.64,137.363]
[1737185554605,27.31646926,232.77,232.64,137.363]
[1737185554814,27.31646926,232.77,232.65,1.85259328]
[1737185555511,27.31646926,232.77,232.64,0.063]
[1737185556427,31.61256926,232.77,232.64,0.063]
[1737185557412,4.2961,232.77,232.64,0.063]
[1737185557819,27.31646926,232.76,232.64,0.063]
[1737185558497,37.99316926,232.76,232.64,0.063]
[1737185558727,65.30963852,232.76,232.64,0.063]
[1737185558912,37.99316926,232.76,232.64,0.063]
[1737185560102,20.0,232.73,232.64,0.063]
[1737185560303,27.31646926,232.65,232.64,0.063]
[1737185560911,4.2964,232.75,232.64,0.063]
[1737185561118,27.31646926,232.65,232.64,0.063]
[1737185564501,27.31646926,232.7,232.64,0.063]
[1737185564802,27.31646926,232.68,232.64,0.063]
[1737185565416,27.31646926,232.7,232.64,0.063]
[1737185565595,27.31646926,232.72,232.64,0.063]
[1737185566222,27.31646926,232.7,232.64,0.063]
[1737185566603,27.31646926,232.68,232.64,0.063]
[1737185566918,27.31646926,232.66,232.64,0.063]
[1737185567501,27.31646926,232.68,232.64,0.063]
[1737185567694,2.7861,232.78,232.64,0.063]
[1737185567695,0.03,232.89,232.71,20.0]
[1737185567901,27.31646926,232.8,232.71,20.0]
[1737185568100,27.31646926,232.82,232.71,20.0]
[1737185569523,27.31646926,232.84,232.71,20.0]
[1737185570710,27.31646926,232.86,232.75,20.0]
[1737185571421,27.31646926,232.88,232.75,20.0]
[1737185572506,27.31646926,232.86,232.75,20.0]
[1737185573413,27.29329659,232.86,232.75,20.0]
[1737185573819,16.7959125,232.86,232.75,20.0]
[1737185574015,16.7959125,232.84,232.75,20.0]
[1737185574211,16.7959125,232.82,232.75,20.0]
[1737185575224,16.7959125,232.82,232.71,21.77646388]
[1737185575525,16.7959125,232.82,232.71,20.0]
[1737185576028,16.7959125,232.8,232.71,20.0]
[1737185579926,16.7959125,232.78,232.68,11.1067]
[1737185580728,16.7959125,232.78,232.71,20.0]
[1737185580939,16.7959125,232.76,232.66,144.30553116]
[1737185581125,16.7959125,232.74,232.66,7.00553116]
[1737185581324,16.7959125,232.72,232.66,7.00553116]
[1737185582022,16.7959125,232.72,232.67,20.0]
[1737185582337,16.7959125,232.72,232.64,137.363]
[1737185584046,16.7959125,232.72,232.67,20.0]
[1737185584426,16.7959125,232.72,232.64,0.063]
[1737185584628,16.7959125,232.7,232.64,0.063]
[1737185584828,16.7959125,232.72,232.64,0.063]
[1737185585138,16.7959125,232.76,232.64,157.363]
[1737185585339,16.7959125,232.76,232.64,164.36853116]
[1737185586733,16.7959125,232.74,232.64,27.06853116]
[1737185586929,16.7959125,232.72,232.64,27.06853116]
[1737185587132,16.7959125,232.72,232.64,0.063]
[1737185587344,16.7959125,232.7,232.64,0.063]
[1737185589061,4.2969,232.73,232.64,0.063]
[1737185589240,16.7959125,232.72,232.64,0.063]
[1737185589440,10.5033,232.87,232.67,157.3]
[1737185589745,16.7959125,232.8,232.7,20.0]
[1737185592553,16.7959125,232.82,232.7,157.3]
[1737185592754,16.7959125,232.82,232.7,164.30553116]
[1737185593058,16.7959125,232.84,232.74,20.0]
[1737185593241,0.03,232.89,232.78,20.0]
[1737185593442,0.03,232.89,232.78,27.00553116]
[1737185593741,16.8259125,232.89,232.78,27.00553116]
[1737185594636,16.8259125,232.89,232.78,164.30553116]
[1737185594838,0.03,232.89,232.82,20.0]
[1737185595149,0.53355044,232.96,232.87,157.3]
[1737185595731,0.53355044,232.96,232.91,157.3]
[1737185595935,0.03,233.0,232.95,20.0]
[1737185596147,0.03,233.0,232.96,0.64366453]
[1737185596456,36.7959125,232.97,232.76,10.3584]
[1737185596650,16.7959125,232.88,232.73,13.17246009]
[1737185596849,16.7959125,232.84,232.73,13.17246009]
[1737185597245,16.7959125,232.84,232.7,1.816232]
[1737185597450,16.7959125,232.84,232.69,10.3584]
[1737185597775,16.7959125,232.84,232.72,20.0]
[1737185597944,16.7959125,232.86,232.72,137.3]
[1737185598342,16.7959125,232.86,232.75,20.0]
[1737185598540,16.7959125,232.84,232.72,137.3]
[1737185598736,16.7959125,232.8,232.69,1.76311225]
[1737185598949,16.7959125,232.8,232.65,150.47246009]
[1737185599155,0.03,232.89,232.65,150.47246009]
[1737185599359,16.7959125,232.84,232.68,157.3]
[1737185599551,16.7959125,232.87,232.68,157.3]
[1737185600253,16.7959125,232.85,232.68,157.3]
[1737185600875,16.7959125,232.87,232.68,157.3]
[1737185601157,0.03,232.89,232.69,0.64430913]
[1737185601362,16.8259125,232.89,232.69,0.64430913]
[1737185601537,16.8259125,232.89,232.68,175.67265236]
[1737185602172,16.8259125,232.89,232.68,157.3]
[1737185602464,16.8259125,232.89,232.69,0.64429891]
[1737185602644,16.8259125,232.89,232.72,20.0]
[1737185602965,16.8259125,232.89,232.72,157.3]
[1737185603364,0.03,232.89,232.72,157.3]
[1737185605346,16.7959125,232.87,232.72,157.3]
[1737185605942,16.7959125,232.87,232.72,159.07322449]
[1737185606958,16.8259125,232.89,232.72,159.07322449]
[1737185608159,0.03,232.89,232.76,20.0]
[1737185608365,0.03,232.87,232.76,20.0]
[1737185609150,0.03,232.87,232.8,20.0]
[1737185609345,0.03,232.87,232.8,157.3]
[1737185609550,0.03,232.87,232.81,0.64416694]
[1737185609940,0.03,232.87,232.81,137.94416694]
[1737185610165,0.03,232.87,232.84,20.0]
[1737185611158,0.03,232.87,232.79,140.119]
[1737185611366,0.03,232.87,232.82,20.0]
[1737185613050,0.03,232.87,232.82,157.3]
[1737185614079,0.03,232.87,232.82,159.08533847]
[1737185614277,0.03,232.87,232.82,157.3]
[1737185614775,0.03,232.87,232.77,148.4271]
[1737185615244,0.03,232.87,232.8,20.0]
[1737185616562,16.8259125,232.87,232.77,1.80421775]
[1737185616765,16.8259125,232.87,232.72,140.119]
[1737185618146,16.8259125,232.87,232.75,20.0]
[1737185621258,0.03,232.87,232.75,157.3]
[1737185621459,0.03,232.87,232.76,0.64417564]
[1737185621663,0.03,232.87,232.75,157.3]
[1737185621877,0.03,232.87,232.76,0.6442148]
[1737185622051,0.03,232.87,232.79,157.3]
[1737185623252,0.03,232.87,232.74,150.47246009]
[1737185623451,0.03,232.87,232.77,157.3]
[1737185626380,0.03,232.87,232.78,0.64427865]
[1737185626561,0.03,232.87,232.8,157.3]
[1737185630673,0.03,232.87,232.8,137.3]
[1737185631062,0.03,232.87,232.83,20.0]
[1737185632480,0.03,232.87,232.82,0.063]
[1737185638780,16.8259125,232.87,232.82,0.063]
[1737185638974,16.7959125,232.83,232.82,0.063]
[1737185639296,4.2951,232.82,232.72,0.063]
[1737185639469,16.81077777,232.74,232.72,0.063]
[1737185639778,16.81077777,232.78,232.72,0.063]
[1737185639981,16.81077777,232.82,232.72,0.063]
[1737185640168,16.81077777,232.84,232.72,0.063]
[1737185640376,13.21232346,232.85,232.73,20.0]
[1737185640879,13.21232346,232.85,232.75,20.0]
[1737185641178,10.4733,232.86,232.75,157.3]
[1737185641362,0.03,232.87,232.75,157.3]
[1737185642882,0.03,232.87,232.81,20.0]
[1737185643566,0.03,232.87,232.82,0.64411082]
[1737185643769,0.03,232.87,232.85,157.3]
[1737185643969,0.03,232.87,232.86,0.64388778]
[1737185644984,0.03,232.97,232.86,137.94388778]
[1737185645175,0.03,232.97,232.89,20.0]
[1737185645489,16.79002603,232.94,232.8,139.0623192]
[1737185645791,16.79002603,232.94,232.82,13.45686869]
[1737185645984,0.03,232.97,232.82,13.45686869]
[1737185646489,0.03,232.97,232.83,20.0]
[1737185646791,0.03,232.97,232.83,157.3]
[1737185647194,16.79002603,232.96,232.83,157.3]
[1737185647490,16.79002603,232.92,232.79,13.45686869]
[1737185647677,11.1906,232.87,232.79,13.45686869]
[1737185647991,0.03,232.97,232.78,26.66650494]
[1737185647992,11.1906,232.94,232.81,13.45686869]
[1737185648199,16.79002603,232.91,232.84,20.0]
[1737185648488,16.79002603,232.88,232.81,13.45686869]
[1737185648688,16.79002603,232.92,232.81,13.45686869]
[1737185648994,16.79002603,232.92,232.78,137.363]
[1737185649290,11.1906,232.94,232.81,20.0]
[1737185649490,11.1906,232.94,232.81,157.3]
[1737185649881,11.1906,232.94,232.85,20.0]
[1737185650591,16.79002603,232.91,232.82,150.75686869]
[1737185650997,16.79002603,232.91,232.85,20.0]
[1737185651292,16.79002603,232.93,232.85,20.0]
[1737185651586,16.79002603,232.9,232.78,13.51986869]
[1737185651768,16.79002603,232.92,232.78,13.51986869]
[1737185651974,16.79002603,232.92,232.78,0.063]
[1737185652283,16.79002603,232.92,232.79,20.0]